[Event "January 2 Early 2024"]
[Site "https://www.chess.com"]
[Date "2024.01.02"]
[Round "2"]
[White "NevorLegov"]
[Black "Jia, Haoxiang"]
[Result "1/2-1/2"]
[Board "37"]
[TimeControl "180+1"]
[BlackFideId "8602999"]
[WhiteElo "2941"]
[BlackElo "2619"]
[BlackTeam "CHN"]
[WhiteClock "0:00:13"]
[BlackClock "0:00:12"]

1. d4 {[%clk 0:03:00]}  Nf6 {[%clk 0:02:58]} 2. c4 {[%clk 0:03:01]}  g6 {[%clk 0:02:58]} 3. Nc3 {[%clk 0:03:00]}  Bg7 {[%clk 0:02:58]} 4. e4 {[%clk 0:03:01]}  d6 {[%clk 0:02:59]} 5. h3 {[%clk 0:03:01]}  O-O {[%clk 0:02:59]} 6. Be3 {[%clk 0:03:01]}  e5 {[%clk 0:02:59]} 7. d5 {[%clk 0:03:01]}  Nh5 {[%clk 0:02:52]} 8. g3 {[%clk 0:02:52]}  Na6 {[%clk 0:02:48]} 9. Be2 {[%clk 0:02:48]}  Nf6 {[%clk 0:02:48]} 10. Nf3 {[%clk 0:02:44]}  Nc5 {[%clk 0:02:46]} 11. Nd2 {[%clk 0:02:44]}  a5 {[%clk 0:02:42]} 12. g4 {[%clk 0:02:43]}  Ne8 {[%clk 0:02:40]} 13. g5 {[%clk 0:02:40]}  f5 {[%clk 0:02:38]} 14. gxf6 {[%clk 0:02:40]}  Nxf6 {[%clk 0:02:38]} 15. Qc2 {[%clk 0:02:38]}  Bd7 {[%clk 0:02:31]} 16. O-O-O {[%clk 0:02:38]}  Qe8 {[%clk 0:02:25]} 17. Rdg1 {[%clk 0:02:36]}  Kh8 {[%clk 0:02:24]} 18. h4 {[%clk 0:02:36]}  Nh5 {[%clk 0:02:20]} 19. Bxh5 {[%clk 0:02:28]}  gxh5 {[%clk 0:02:20]} 20. Kb1 {[%clk 0:02:26]}  b6 {[%clk 0:02:13]} 21. Rg3 {[%clk 0:02:24]}  Bf6 {[%clk 0:02:11]} 22. Nf3 {[%clk 0:02:05]}  Bg4 {[%clk 0:02:07]} 23. Ng5 {[%clk 0:01:55]}  Bxg5 {[%clk 0:02:07]} 24. hxg5 {[%clk 0:01:53]}  Qg6 {[%clk 0:02:03]} 25. a3 {[%clk 0:01:45]}  Rf3 {[%clk 0:01:59]} 26. Rxf3 {[%clk 0:01:36]}  Bxf3 {[%clk 0:01:59]} 27. Rh4 {[%clk 0:01:37]}  Rf8 {[%clk 0:01:15]} 28. Ka2 {[%clk 0:01:36]}  Rf7 {[%clk 0:00:52]} 29. b4 {[%clk 0:01:36]}  axb4 {[%clk 0:00:50]} 30. axb4 {[%clk 0:01:37]}  Nd7 {[%clk 0:00:50]} 31. Kb3 {[%clk 0:01:35]}  h6 {[%clk 0:00:45]} 32. gxh6 {[%clk 0:01:34]}  Qg1 {[%clk 0:00:44]} 33. Qc1 {[%clk 0:01:20]}  Qxc1 {[%clk 0:00:42]} 34. Bxc1 {[%clk 0:01:21]}  Kh7 {[%clk 0:00:42]} 35. Be3 {[%clk 0:01:20]}  Nf6 {[%clk 0:00:42]} 36. c5 {[%clk 0:01:11]}  bxc5 {[%clk 0:00:41]} 37. bxc5 {[%clk 0:01:12]}  Ng4 {[%clk 0:00:36]} 38. cxd6 {[%clk 0:00:46]}  cxd6 {[%clk 0:00:37]} 39. Bc1 {[%clk 0:00:44]}  Nxf2 {[%clk 0:00:35]} 40. Be3 {[%clk 0:00:40]}  Ng4 {[%clk 0:00:34]} 41. Bd2 {[%clk 0:00:33]}  Nxh6 {[%clk 0:00:31]} 42. Nb5 {[%clk 0:00:33]}  Rf6 {[%clk 0:00:30]} 43. Bg5 {[%clk 0:00:28]}  Rg6 {[%clk 0:00:30]} 44. Be7 {[%clk 0:00:28]}  Nf7 {[%clk 0:00:27]} 45. Rh3 {[%clk 0:00:27]}  Bxe4 {[%clk 0:00:26]} 46. Rxh5+ {[%clk 0:00:27]}  Kg7 {[%clk 0:00:26]} 47. Nc3 {[%clk 0:00:27]}  Rg3 {[%clk 0:00:23]} 48. Kc4 {[%clk 0:00:25]}  Bd3+ {[%clk 0:00:24]} 49. Kb4 {[%clk 0:00:25]}  Rg4+ {[%clk 0:00:24]} 50. Kb3 {[%clk 0:00:24]}  e4 {[%clk 0:00:23]} 51. Rh4 {[%clk 0:00:21]}  Rg3 {[%clk 0:00:21]} 52. Kb4 {[%clk 0:00:20]}  e3 {[%clk 0:00:20]} 53. Rh1 {[%clk 0:00:16]}  e2 {[%clk 0:00:20]} 54. Re1 {[%clk 0:00:17]}  Re3 {[%clk 0:00:20]} 55. Bh4 {[%clk 0:00:16]}  Ne5 {[%clk 0:00:19]} 56. Bf2 {[%clk 0:00:15]}  Nf3 {[%clk 0:00:17]} 57. Bxe3 {[%clk 0:00:13]}  Nxe1 {[%clk 0:00:18]} 58. Nxe2 {[%clk 0:00:13]}  Bxe2 {[%clk 0:00:16]} 59. Bg5 {[%clk 0:00:12]}  Kf7 {[%clk 0:00:16]} 60. Bh4 {[%clk 0:00:11]}  Nd3+ {[%clk 0:00:16]} 61. Kb5 {[%clk 0:00:11]}  Ne5+ {[%clk 0:00:16]} 62. Kb6 {[%clk 0:00:12]}  Bf3 {[%clk 0:00:15]} 63. Kc7 {[%clk 0:00:12]}  Nc4 {[%clk 0:00:15]} 64. Bg3 {[%clk 0:00:12]}  Bxd5 {[%clk 0:00:12]} 65. Bxd6 {[%clk 0:00:12]}  Ke6 {[%clk 0:00:13]} 66. Bg3 {[%clk 0:00:12]}  Na5 {[%clk 0:00:13]} 67. Bh2 {[%clk 0:00:13]}  Nb7 {[%clk 0:00:12]} 68. Bg3 {[%clk 0:00:13]}  Nd6 {[%clk 0:00:12]} 69. Bxd6 {[%clk 0:00:13]} 1/2-1/2

[Event "January 2 Early 2024"]
[Site "https://www.chess.com"]
[Date "2024.01.02"]
[Round "2"]
[White "Makhnev, Denis"]
[Black "Avramidou, Anastasia"]
[Result "1-0"]
[Board "39"]
[TimeControl "180+1"]
[WhiteFideId "13707647"]
[BlackFideId "4239873"]
[WhiteElo "2935"]
[BlackElo "2617"]
[WhiteTeam "KAZ"]
[BlackTeam "GRE"]
[WhiteClock "0:00:15"]
[BlackClock "0:00:05"]

1. d4 {[%clk 0:03:00]}  Nf6 {[%clk 0:02:59]} 2. c4 {[%clk 0:02:59]}  g6 {[%clk 0:02:57]} 3. Nc3 {[%clk 0:02:57]}  d5 {[%clk 0:02:56]} 4. cxd5 {[%clk 0:02:57]}  Nxd5 {[%clk 0:02:56]} 5. e4 {[%clk 0:02:58]}  Nxc3 {[%clk 0:02:55]} 6. bxc3 {[%clk 0:02:57]}  Bg7 {[%clk 0:02:56]} 7. Qa4+ {[%clk 0:02:57]}  c6 {[%clk 0:02:55]} 8. Nf3 {[%clk 0:02:54]}  O-O {[%clk 0:02:54]} 9. Qa3 {[%clk 0:02:54]}  Nd7 {[%clk 0:02:51]} 10. Be2 {[%clk 0:02:53]}  b6 {[%clk 0:02:51]} 11. Bg5 {[%clk 0:02:47]}  c5 {[%clk 0:02:43]} 12. Rd1 {[%clk 0:02:46]}  Qc7 {[%clk 0:02:23]} 13. e5 {[%clk 0:02:22]}  Re8 {[%clk 0:02:18]} 14. h4 {[%clk 0:02:20]}  f6 {[%clk 0:01:47]} 15. Qb3+ {[%clk 0:01:54]}  Kf8 {[%clk 0:01:43]} 16. h5 {[%clk 0:01:53]}  Bb7 {[%clk 0:01:26]} 17. hxg6 {[%clk 0:01:51]}  hxg6 {[%clk 0:01:27]} 18. Nh4 {[%clk 0:01:51]}  Be4 {[%clk 0:01:20]} 19. Qe6 {[%clk 0:01:43]}  cxd4 {[%clk 0:00:37]} 20. Bc4 {[%clk 0:01:41]}  Qxc4 {[%clk 0:00:32]} 21. Qxc4 {[%clk 0:01:41]}  fxg5 {[%clk 0:00:27]} 22. Rxd4 {[%clk 0:01:14]}  Nxe5 {[%clk 0:00:22]} 23. Qe2 {[%clk 0:01:12]}  Bb1 {[%clk 0:00:15]} 24. O-O {[%clk 0:01:11]}  gxh4 {[%clk 0:00:08]} 25. Rxb1 {[%clk 0:01:10]}  h3 {[%clk 0:00:07]} 26. Rb5 {[%clk 0:00:40]}  Nf7 {[%clk 0:00:07]} 27. Rf4 {[%clk 0:00:41]}  Bf6 {[%clk 0:00:07]} 28. Qg4 {[%clk 0:00:36]}  Kg7 {[%clk 0:00:07]} 29. Qxh3 {[%clk 0:00:33]}  Rad8 {[%clk 0:00:08]} 30. Rb1 {[%clk 0:00:21]}  Rd6 {[%clk 0:00:08]} 31. Re1 {[%clk 0:00:21]}  Red8 {[%clk 0:00:09]} 32. Ra4 {[%clk 0:00:18]}  Rd1 {[%clk 0:00:08]} 33. Rxd1 {[%clk 0:00:18]}  Rxd1+ {[%clk 0:00:09]} 34. Kh2 {[%clk 0:00:19]}  Ng5 {[%clk 0:00:09]} 35. Qg4 {[%clk 0:00:19]}  Rd2 {[%clk 0:00:06]} 36. Kg1 {[%clk 0:00:19]}  Rb2 {[%clk 0:00:05]} 37. Rxa7 {[%clk 0:00:18]}  Rb1+ {[%clk 0:00:05]} 38. Kh2 {[%clk 0:00:19]}  Rb2 {[%clk 0:00:06]} 39. f4 {[%clk 0:00:18]}  Nf7 {[%clk 0:00:04]} 40. Qe6 {[%clk 0:00:17]}  Rf2 {[%clk 0:00:03]} 41. Qe3 {[%clk 0:00:15]}  Rxf4 {[%clk 0:00:02]} 42. Qxf4 {[%clk 0:00:15]}  Be5 {[%clk 0:00:03]} 43. Qxe5+ {[%clk 0:00:16]}  Nxe5 {[%clk 0:00:04]} 44. Rxe7+ {[%clk 0:00:15]}  Kf6 {[%clk 0:00:05]} 1-0

[Event "January 2 Early 2024"]
[Site "https://www.chess.com"]
[Date "2024.01.02"]
[Round "2"]
[White "Corrales Jimenez, Fidel"]
[Black "Chitre Arush"]
[Result "1-0"]
[Board "44"]
[TimeControl "180+1"]
[WhiteFideId "3506690"]
[BlackFideId "25959026"]
[WhiteElo "2918"]
[BlackElo "2609"]
[WhiteTeam "USA"]
[BlackTeam "IND"]
[WhiteClock "0:01:22"]
[BlackClock "0:00:01"]

1. e4 {[%clk 0:03:00]}  e5 {[%clk 0:02:59]} 2. Nf3 {[%clk 0:03:00]}  Nc6 {[%clk 0:02:55]} 3. d4 {[%clk 0:03:01]}  exd4 {[%clk 0:02:54]} 4. Nxd4 {[%clk 0:03:02]}  Nf6 {[%clk 0:02:54]} 5. Nxc6 {[%clk 0:03:02]}  bxc6 {[%clk 0:02:55]} 6. e5 {[%clk 0:03:03]}  Qe7 {[%clk 0:02:55]} 7. Qe2 {[%clk 0:03:03]}  Nd5 {[%clk 0:02:55]} 8. c4 {[%clk 0:03:01]}  Ba6 {[%clk 0:02:54]} 9. b3 {[%clk 0:03:01]}  g5 {[%clk 0:02:54]} 10. Bb2 {[%clk 0:03:01]}  Bg7 {[%clk 0:02:53]} 11. g3 {[%clk 0:03:01]}  O-O-O {[%clk 0:02:51]} 12. Nd2 {[%clk 0:03:00]}  Nb6 {[%clk 0:02:44]} 13. O-O-O {[%clk 0:03:00]}  Rhe8 {[%clk 0:02:40]} 14. f4 {[%clk 0:02:59]}  Kb8 {[%clk 0:02:21]} 15. Bg2 {[%clk 0:02:47]}  gxf4 {[%clk 0:02:15]} 16. gxf4 {[%clk 0:02:48]}  f6 {[%clk 0:02:16]} 17. Rhe1 {[%clk 0:02:31]}  fxe5 {[%clk 0:02:10]} 18. fxe5 {[%clk 0:02:32]}  d5 {[%clk 0:01:47]} 19. Nf3 {[%clk 0:02:25]}  c5 {[%clk 0:01:38]} 20. Kb1 {[%clk 0:02:18]}  dxc4 {[%clk 0:01:34]} 21. Nd2 {[%clk 0:01:56]}  Bb7 {[%clk 0:00:49]} 22. Bxb7 {[%clk 0:01:53]}  Kxb7 {[%clk 0:00:50]} 23. Nxc4 {[%clk 0:01:54]}  Nxc4 {[%clk 0:00:37]} 24. Qxc4 {[%clk 0:01:55]}  Rxd1+ {[%clk 0:00:24]} 25. Rxd1 {[%clk 0:01:56]}  Rd8 {[%clk 0:00:21]} 26. Qb5+ {[%clk 0:01:39]}  Ka8 {[%clk 0:00:17]} 27. Rc1 {[%clk 0:01:29]}  Bh6 {[%clk 0:00:07]} 28. Qc6+ {[%clk 0:01:29]}  Kb8 {[%clk 0:00:05]} 29. Qxh6 {[%clk 0:01:30]}  Qd7 {[%clk 0:00:04]} 30. Qe3 {[%clk 0:01:28]}  Qf5+ {[%clk 0:00:03]} 31. Ka1 {[%clk 0:01:28]}  Qf8 {[%clk 0:00:02]} 32. e6 {[%clk 0:01:26]}  Qe7 {[%clk 0:00:02]} 33. Qxc5 {[%clk 0:01:23]}  Qxc5 {[%clk 0:00:01]} 34. Rxc5 {[%clk 0:01:24]}  Re8 {[%clk 0:00:01]} 35. Re5 {[%clk 0:01:22]} 1-0

[Event "January 2 Early 2024"]
[Site "https://www.chess.com"]
[Date "2024.01.02"]
[Round "2"]
[White "Sadykov, Ramil"]
[Black "Ibarra Jerez, Jose Carlos"]
[Result "0-1"]
[Board "49"]
[TimeControl "180+1"]
[WhiteFideId "24113590"]
[BlackFideId "2226332"]
[WhiteElo "2605"]
[BlackElo "2911"]
[WhiteTeam "FID"]
[BlackTeam "ESP"]
[WhiteClock "0:00:00"]
[BlackClock "0:00:02"]

1. e4 {[%clk 0:03:00]}  c5 {[%clk 0:02:54]} 2. Nf3 {[%clk 0:03:00]}  e6 {[%clk 0:02:54]} 3. c4 {[%clk 0:02:59]}  Nc6 {[%clk 0:02:53]} 4. Nc3 {[%clk 0:02:59]}  Nf6 {[%clk 0:02:53]} 5. Be2 {[%clk 0:02:58]}  Qc7 {[%clk 0:02:45]} 6. O-O {[%clk 0:02:40]}  Ng4 {[%clk 0:02:45]} 7. h3 {[%clk 0:02:32]}  h5 {[%clk 0:02:45]} 8. Nb5 {[%clk 0:02:16]}  Qb8 {[%clk 0:02:42]} 9. d4 {[%clk 0:02:01]}  a6 {[%clk 0:02:35]} 10. d5 {[%clk 0:01:14]}  axb5 {[%clk 0:02:10]} 11. dxc6 {[%clk 0:01:10]}  bxc6 {[%clk 0:02:11]} 12. b3 {[%clk 0:00:44]}  bxc4 {[%clk 0:01:46]} 13. bxc4 {[%clk 0:00:42]}  Bd6 {[%clk 0:01:42]} 14. Rb1 {[%clk 0:00:28]}  Bh2+ {[%clk 0:01:37]} 15. Kh1 {[%clk 0:00:27]}  Qxb1 {[%clk 0:01:26]} 16. Nxh2 {[%clk 0:00:20]}  Nxh2 {[%clk 0:01:21]} 17. Kxh2 {[%clk 0:00:19]}  Qxe4 {[%clk 0:01:21]} 18. Bf3 {[%clk 0:00:14]}  Qxc4 {[%clk 0:01:17]} 19. Bb2 {[%clk 0:00:09]}  O-O {[%clk 0:00:53]} 20. Re1 {[%clk 0:00:06]}  Rxa2 {[%clk 0:00:51]} 21. Re4 {[%clk 0:00:03]}  Qxe4 {[%clk 0:00:26]} 22. Bxe4 {[%clk 0:00:03]}  Rxb2 {[%clk 0:00:27]} 23. Qxh5 {[%clk 0:00:03]}  f5 {[%clk 0:00:27]} 24. Bf3 {[%clk 0:00:02]}  Rxf2 {[%clk 0:00:26]} 25. Qh4 {[%clk 0:00:02]}  Rd2 {[%clk 0:00:25]} 26. Qe7 {[%clk 0:00:02]}  c4 {[%clk 0:00:22]} 27. h4 {[%clk 0:00:01]}  c3 {[%clk 0:00:19]} 28. Qb4 {[%clk 0:00:01]}  Rd3 {[%clk 0:00:16]} 29. Qc4 {[%clk 0:00:01]}  Re3 {[%clk 0:00:16]} 30. Qd4 {[%clk 0:00:01]}  f4 {[%clk 0:00:16]} 31. h5 {[%clk 0:00:01]}  e5 {[%clk 0:00:15]} 32. Qc4+ {[%clk 0:00:01]}  d5 {[%clk 0:00:16]} 33. Bxd5+ {[%clk 0:00:01]}  cxd5 {[%clk 0:00:15]} 34. Qxd5+ {[%clk 0:00:02]}  Kh7 {[%clk 0:00:15]} 35. Qc6 {[%clk 0:00:02]}  c2 {[%clk 0:00:07]} 36. Qg6+ {[%clk 0:00:01]}  Kh8 {[%clk 0:00:05]} 37. h6 {[%clk 0:00:02]}  Rg8 {[%clk 0:00:05]} 38. Qxc2 {[%clk 0:00:01]}  gxh6 {[%clk 0:00:04]} 39. Qc7 {[%clk 0:00:01]}  Bf5 {[%clk 0:00:03]} 40. Qe7 {[%clk 0:00:01]}  Bd3 {[%clk 0:00:03]} 41. Qf6+ {[%clk 0:00:02]}  Kh7 {[%clk 0:00:03]} 42. Qe7+ {[%clk 0:00:01]}  Rg7 {[%clk 0:00:04]} 43. Qf8 {[%clk 0:00:01]}  Re2 {[%clk 0:00:04]} 44. Kh3 {[%clk 0:00:01]}  Re3+ {[%clk 0:00:03]} 45. Kh4 {[%clk 0:00:02]}  Reg3 {[%clk 0:00:02]} 46. Qh8+ {[%clk 0:00:00]}  Kxh8 {[%clk 0:00:02]} 0-1

[Event "January 2 Early 2024"]
[Site "https://www.chess.com"]
[Date "2024.01.02"]
[Round "2"]
[White "Kukhmazov, Arsen"]
[Black "Shubenkova, Veronika"]
[Result "1/2-1/2"]
[Board "56"]
[TimeControl "180+1"]
[WhiteFideId "24108260"]
[BlackFideId "44124040"]
[WhiteElo "2886"]
[BlackElo "2586"]
[WhiteTeam "FID"]
[BlackTeam "RUS"]
[WhiteClock "0:00:05"]
[BlackClock "0:00:24"]

1. d4 {[%clk 0:03:00]}  d5 {[%clk 0:03:00]} 2. c4 {[%clk 0:03:01]}  e6 {[%clk 0:03:00]} 3. Nc3 {[%clk 0:03:01]}  f5 {[%clk 0:03:00]} 4. Bf4 {[%clk 0:03:00]}  Nf6 {[%clk 0:03:00]} 5. e3 {[%clk 0:03:01]}  c6 {[%clk 0:03:00]} 6. Bd3 {[%clk 0:03:01]}  Bd6 {[%clk 0:03:00]} 7. Nf3 {[%clk 0:02:58]}  O-O {[%clk 0:03:00]} 8. O-O {[%clk 0:02:58]}  Ne4 {[%clk 0:02:57]} 9. Qc2 {[%clk 0:02:57]}  Qe7 {[%clk 0:02:57]} 10. Rab1 {[%clk 0:02:55]}  Nd7 {[%clk 0:02:56]} 11. c5 {[%clk 0:02:54]}  Bb8 {[%clk 0:02:56]} 12. b4 {[%clk 0:02:53]}  a6 {[%clk 0:02:56]} 13. a4 {[%clk 0:02:53]}  e5 {[%clk 0:02:56]} 14. dxe5 {[%clk 0:02:53]}  Nxe5 {[%clk 0:02:57]} 15. Bxe5 {[%clk 0:02:53]}  Bxe5 {[%clk 0:02:57]} 16. Nxe5 {[%clk 0:02:54]}  Qxe5 {[%clk 0:02:58]} 17. Ne2 {[%clk 0:02:55]}  Bd7 {[%clk 0:02:56]} 18. f4 {[%clk 0:02:51]}  Qe7 {[%clk 0:02:54]} 19. Bxe4 {[%clk 0:02:52]}  fxe4 {[%clk 0:02:51]} 20. Nd4 {[%clk 0:02:52]}  Rf6 {[%clk 0:02:50]} 21. h3 {[%clk 0:02:06]}  Raf8 {[%clk 0:02:48]} 22. Qf2 {[%clk 0:01:50]}  Rg6 {[%clk 0:02:39]} 23. Kh2 {[%clk 0:01:48]}  Rh6 {[%clk 0:02:29]} 24. f5 {[%clk 0:01:31]}  Rhf6 {[%clk 0:01:46]} 25. g4 {[%clk 0:01:29]}  h6 {[%clk 0:01:44]} 26. Qg3 {[%clk 0:01:02]}  Kh8 {[%clk 0:01:41]} 27. Rf2 {[%clk 0:00:51]}  g6 {[%clk 0:01:39]} 28. g5 {[%clk 0:00:16]}  hxg5 {[%clk 0:01:35]} 29. Qxg5 {[%clk 0:00:17]}  Qe5+ {[%clk 0:01:32]} 30. Kh1 {[%clk 0:00:17]}  Bxf5 {[%clk 0:01:04]} 31. Qh6+ {[%clk 0:00:17]}  Kg8 {[%clk 0:01:04]} 32. Rg1 {[%clk 0:00:18]}  Kf7 {[%clk 0:00:37]} 33. Nxf5 {[%clk 0:00:05]}  Rxf5 {[%clk 0:00:37]} 34. Qh7+ {[%clk 0:00:06]}  Ke8 {[%clk 0:00:36]} 35. Qxg6+ {[%clk 0:00:06]}  Ke7 {[%clk 0:00:34]} 36. Rxf5 {[%clk 0:00:04]}  Rxf5 {[%clk 0:00:30]} 37. Qg7+ {[%clk 0:00:02]}  Qxg7 {[%clk 0:00:30]} 38. Rxg7+ {[%clk 0:00:03]}  Rf7 {[%clk 0:00:31]} 39. Rxf7+ {[%clk 0:00:02]}  Kxf7 {[%clk 0:00:32]} 40. Kg2 {[%clk 0:00:03]}  Kg6 {[%clk 0:00:32]} 41. Kg3 {[%clk 0:00:03]}  Kg5 {[%clk 0:00:33]} 42. h4+ {[%clk 0:00:04]}  Kh5 {[%clk 0:00:33]} 43. Kh3 {[%clk 0:00:04]}  Kh6 {[%clk 0:00:33]} 44. Kg4 {[%clk 0:00:05]}  Kg6 {[%clk 0:00:33]} 45. h5+ {[%clk 0:00:04]}  Kg7 {[%clk 0:00:33]} 46. a5 {[%clk 0:00:04]}  Kh6 {[%clk 0:00:33]} 47. Kh4 {[%clk 0:00:04]}  Kh7 {[%clk 0:00:33]} 48. Kg4 {[%clk 0:00:04]}  Kg7 {[%clk 0:00:34]} 49. Kf4 {[%clk 0:00:03]}  Kf6 {[%clk 0:00:33]} 50. Kg4 {[%clk 0:00:03]}  Kf7 {[%clk 0:00:30]} 51. Kh4 {[%clk 0:00:02]}  Kg7 {[%clk 0:00:29]} 52. Kg4 {[%clk 0:00:03]}  Kh6 {[%clk 0:00:29]} 53. Kh4 {[%clk 0:00:03]}  Kh7 {[%clk 0:00:27]} 54. Kg4 {[%clk 0:00:04]}  Kg7 {[%clk 0:00:26]} 55. Kf4 {[%clk 0:00:04]}  Kf7 {[%clk 0:00:26]} 56. Kg4 {[%clk 0:00:04]}  Kf6 {[%clk 0:00:26]} 57. Kf4 {[%clk 0:00:05]}  Kg7 {[%clk 0:00:24]} 58. Kg4 {[%clk 0:00:05]} 1/2-1/2

[Event "January 2 Early 2024"]
[Site "https://www.chess.com"]
[Date "2024.01.02"]
[Round "2"]
[White "Lima, Kleyton Alcantara"]
[Black "Szpar, Milosz"]
[Result "1-0"]
[Board "59"]
[TimeControl "180+1"]
[WhiteFideId "22718397"]
[BlackFideId "1184989"]
[WhiteElo "2585"]
[BlackElo "2875"]
[WhiteTeam "BRA"]
[BlackTeam "POL"]
[WhiteClock "0:00:10"]
[BlackClock "0:00:06"]

1. e4 {[%clk 0:03:00]}  c5 {[%clk 0:02:59]} 2. Nf3 {[%clk 0:03:01]}  d6 {[%clk 0:02:59]} 3. d4 {[%clk 0:03:01]}  cxd4 {[%clk 0:02:59]} 4. Nxd4 {[%clk 0:03:02]}  Nf6 {[%clk 0:03:00]} 5. Nc3 {[%clk 0:03:03]}  Nc6 {[%clk 0:03:00]} 6. Bg5 {[%clk 0:03:03]}  e6 {[%clk 0:03:00]} 7. Qd3 {[%clk 0:02:59]}  Bd7 {[%clk 0:02:59]} 8. O-O-O {[%clk 0:02:44]}  a6 {[%clk 0:02:59]} 9. f4 {[%clk 0:02:44]}  Be7 {[%clk 0:02:57]} 10. Nf3 {[%clk 0:02:43]}  b5 {[%clk 0:02:48]} 11. e5 {[%clk 0:02:03]}  dxe5 {[%clk 0:02:48]} 12. fxe5 {[%clk 0:02:04]}  Nd5 {[%clk 0:02:49]} 13. Bxe7 {[%clk 0:01:56]}  Ncxe7 {[%clk 0:02:50]} 14. Ne4 {[%clk 0:01:54]}  O-O {[%clk 0:02:49]} 15. Nfg5 {[%clk 0:01:40]}  Ng6 {[%clk 0:02:47]} 16. Qg3 {[%clk 0:01:01]}  Qa5 {[%clk 0:01:42]} 17. Kb1 {[%clk 0:00:54]}  b4 {[%clk 0:01:36]} 18. h4 {[%clk 0:00:47]}  Rab8 {[%clk 0:01:26]} 19. h5 {[%clk 0:00:45]}  Nc3+ {[%clk 0:01:24]} 20. bxc3 {[%clk 0:00:42]}  bxc3+ {[%clk 0:01:24]} 21. Ka1 {[%clk 0:00:42]}  Rb2 {[%clk 0:00:50]} 22. Bc4 {[%clk 0:00:36]}  Nxe5 {[%clk 0:00:10]} 23. Qxc3 {[%clk 0:00:31]}  Qxc3 {[%clk 0:00:10]} 24. Nxc3 {[%clk 0:00:31]}  Nxc4 {[%clk 0:00:10]} 25. Rxd7 {[%clk 0:00:28]}  Rxc2 {[%clk 0:00:11]} 26. Nce4 {[%clk 0:00:26]}  h6 {[%clk 0:00:11]} 27. Nf3 {[%clk 0:00:23]}  Rxg2 {[%clk 0:00:11]} 28. Rc1 {[%clk 0:00:22]}  Ne3 {[%clk 0:00:11]} 29. Rdc7 {[%clk 0:00:20]}  Kh7 {[%clk 0:00:10]} 30. Ne5 {[%clk 0:00:18]}  f6 {[%clk 0:00:05]} 31. Ng6 {[%clk 0:00:16]}  Rg8 {[%clk 0:00:06]} 32. Nxf6# {[%clk 0:00:10]} 1-0

[Event "January 2 Early 2024"]
[Site "https://www.chess.com"]
[Date "2024.01.02"]
[Round "2"]
[White "Rohith Krishna S"]
[Black "Veljanoski, Andrej"]
[Result "0-1"]
[Board "61"]
[TimeControl "180+1"]
[WhiteFideId "46617051"]
[BlackFideId "15003604"]
[WhiteElo "2867"]
[BlackElo "2580"]
[WhiteTeam "IND"]
[BlackTeam "MKD"]
[WhiteClock "0:01:20"]
[BlackClock "0:00:53"]

1. d4 {[%clk 0:03:00]}  b6 {[%clk 0:02:59]} 2. c4 {[%clk 0:03:00]}  Bb7 {[%clk 0:02:59]} 3. Nc3 {[%clk 0:03:00]}  g6 {[%clk 0:03:00]} 4. e4 {[%clk 0:03:00]}  Bg7 {[%clk 0:03:01]} 5. f4 {[%clk 0:03:00]}  d6 {[%clk 0:03:01]} 6. Nf3 {[%clk 0:03:00]}  e6 {[%clk 0:03:02]} 7. h4 {[%clk 0:02:58]}  h5 {[%clk 0:03:00]} 8. f5 {[%clk 0:02:58]}  exf5 {[%clk 0:02:56]} 9. exf5 {[%clk 0:02:58]}  Ne7 {[%clk 0:02:56]} 10. Bd3 {[%clk 0:02:55]}  Nbc6 {[%clk 0:02:56]} 11. d5 {[%clk 0:02:53]}  Ne5 {[%clk 0:02:55]} 12. Nxe5 {[%clk 0:02:50]}  Bxe5 {[%clk 0:02:55]} 13. O-O {[%clk 0:02:45]}  Nxf5 {[%clk 0:02:52]} 14. Bxf5 {[%clk 0:02:43]}  Qxh4 {[%clk 0:02:43]} 15. Bh3 {[%clk 0:02:43]}  Qxc4 {[%clk 0:02:25]} 16. Qf3 {[%clk 0:02:32]}  f5 {[%clk 0:02:09]} 17. Bg5 {[%clk 0:02:30]}  O-O {[%clk 0:02:00]} 18. Rac1 {[%clk 0:02:25]}  Rf7 {[%clk 0:01:52]} 19. Rfd1 {[%clk 0:02:22]}  Re8 {[%clk 0:01:42]} 20. g3 {[%clk 0:02:17]}  f4 {[%clk 0:01:21]} 21. Ne4 {[%clk 0:02:13]}  Bd4+ {[%clk 0:00:56]} 22. Kh1 {[%clk 0:02:09]}  Qxd5 {[%clk 0:00:56]} 23. Rxd4 {[%clk 0:01:43]}  Qxd4 {[%clk 0:00:53]} 24. Nf6+ {[%clk 0:01:20]}  Qxf6 {[%clk 0:00:53]} 0-1